[Event "Carolinas Classic 2022"]
[Site "Charlotte"]
[Date "2022.06.11"]
[Round "1.1"]
[White "Chirilov, James A"]
[Black "Moradiabadi, Elshan"]
[Result "0-1"]
[ECO "B33"]
[WhiteElo "1838"]
[BlackElo "2537"]
[Annotator "TA"]
[PlyCount "80"]
[EventDate "2022.06.10"]
[EventType "swiss"]
[EventCountry "USA"]
[SourceTitle "playchess.com"]
[Source "ChessBase"]
[SourceQuality "1"]
[TimeControl "5400+30"]

{[%evp 16,80,44,40,41,43,82,0,34,-21,35,-46,-48,-39,-35,-43,-56,-40,-42,-59,-65,-69,-68,-86,-68,-56,-64,-66,-43,-54,-46,-58,-33,-45,-36,-30,-50,-62,-74,-53,-57,-87,-64,-60,-52,-50,-49,-131,-100,-216,-228,-220,-220,-213,-219,-208,-206,-217,-221,-456,-450,-1400,-1283,-1276,-1046,-775,-759]} 1. e4 {[%emt 0:00:03]} c5 {[%emt 0:00:03]} 2. Nf3 {[%emt 0:00:06]} Nc6 {[%emt 0:00:25]} 3. d4 {[%emt 0:00:06]} cxd4 {[%emt 0:00:04]} 4. Nxd4 {[%emt 0:00:05]} Qb6 {[%emt 0:00:23]} 5. Nb3 {[%emt 0:01:10]} Nf6 {[%emt 0:00:01]} 6. Nc3 {[%emt 0:00:29]} e6 {[%emt 0:00:02]} 7. Be3 {[%emt 0:00:42]} Qc7 {[%emt 0:00:00]} 8. Bd3 {[%emt 0:04:57]} a6 {[%emt 0:05:06]} 9. O-O {[%emt 0:02:17]} b5 {[%emt 0:00:09] B33: Sicilian: Pelikan and Sveshnikov Variations.} 10. f4 {[%emt 0:01:37]} b4 {[%emt 0:00:37] [#]} 11. Nb1 $146 {[%emt 0:01:01]} (11. Na4 $1 $16) ({Predecessor:} 11. Na4 Rb8 12. c4 bxc3 13. Nxc3 h5 14. Be2 Rb4 15. Bf3 Qb8 16. Rf2 a5 17. Qe2 {0-1 (67) Miroslaw,M (2280)-Jakubowski,K (2508) Pokrzywna 2018}) 11... a5 {[%emt 0:07:58] The position is equal.} 12. Qf3 {[%emt 0:08:45]} (12. a4 $14) 12... Bb7 {[%emt 0:02:08]} (12... a4 $11 13. Nc1 Bb7) 13. Nc5 {[%emt 0:03:11] [#]} ({Better is} 13. a4 $14) 13... Nd4 $1 $15 {[%emt 0:02:31]} 14. Bxd4 {[%emt 0:01:17]} Bxc5 {[%emt 0:00:04]} 15. Bxc5 {[%emt 0:06:46]} Qxc5+ {[%emt 0:00:58]} 16. Kh1 d5 {[%emt 0:15:21][%cal Rd5e4]} 17. exd5 {[%emt 0:03:47]} Bxd5 {[%emt 0:01:01]} 18. Qe2 {[%emt 0:00:24]} O-O {[%emt 0:00:08] Black is more active.} 19. Nd2 {[%emt 0:01:09]} Rac8 {[%emt 0:03:41]} 20. a3 {[%emt 0:03:27]} bxa3 {[%emt 0:05:23]} 21. Rxa3 {[%emt 0:00:49]} Rb8 {[%emt 0:04:21]} 22. Rfa1 {[%emt 0:02:54]} Rxb2 {[%emt 0:02:14] Hoping for ...Ra8.} 23. Rxa5 {[%emt 0:00:14]} Qd4 {[%emt 0:00:09]} 24. R5a4 $1 {[%emt 0:02:04]} Rb4 {[%emt 0:01:13]} 25. Rxb4 {[%emt 0:01:47]} Qxa1+ {[%emt 0:00:05]} 26. Rb1 {[%emt 0:00:07]} Qd4 {[%emt 0:00:02]} 27. Rf1 {[%emt 0:08:13][%cal Bb1f1,Bf1f2,Bf2e2][%mdl 32]} g6 {[%emt 0:03:44]} 28. Qf2 {[%emt 0:01:16]} Qxf2 {[%emt 0:01:47]} 29. Rxf2 {[%emt 0:00:01]} Ng4 {[%emt 0:00:07]} 30. Re2 {[%emt 0:08:30]} Ra8 {[%emt 0:00:01] Threatens to win with ...Ra1+.} 31. Nf3 {[%emt 0:02:08]} ({White should play} 31. Kg1 $1 $15) 31... Ra1+ {[%emt 0:04:30]} 32. Ng1 {[%emt 0:03:15] [#]} (32. Ne1 $17) 32... Rf1 $1 $19 {[%emt 0:00:58] And now ...Nf2+ would win.} 33. h3 {[%emt 0:04:22]} Nf2+ {[%emt 0:00:04]} ({Don't play} 33... Rxf4 34. hxg4 Rxg4 35. Nf3 $16) 34. Kh2 {[%emt 0:00:05]} Nxd3 {[%emt 0:00:04]} 35. cxd3 {[%emt 0:00:05]} Rxf4 {[%emt 0:00:03] KRB-KRN} 36. Rd2 {[%emt 0:00:18]} g5 {[%emt 0:00:54][%cal Bg6g5,Bg5g4][%mdl 32]} 37. d4 $2 {[%emt 0:03:16]} (37. Rc2) 37... h5 {[%emt 0:02:40] Black is clearly winning.} 38. Rd3 {[%emt 0:00:44]} (38. Re2 $142 Rxd4 39. Nf3 Bxf3 40. gxf3) 38... Rf2 {[%emt 0:02:57]} 39. Rg3 {[%emt 0:00:04]} f6 {[%emt 0:00:29]} 40. h4 {[%emt 0:00:45]} g4 {[%emt 0:00:59] Weighted Error Value: White=0.40/Black=0.09 (flawless)} 0-1

[Event "Carolinas Classic 2022"]
[Site "Charlotte"]
[Date "2022.06.11"]
[Round "1.2"]
[White "Shabalov, Alexander"]
[Black "Rajagopal, Adharsh"]
[Result "1-0"]
[ECO "B90"]
[WhiteElo "2504"]
[BlackElo "1756"]
[Annotator "TA"]
[PlyCount "99"]
[EventDate "2022.06.10"]
[EventType "swiss"]
[EventCountry "USA"]
[SourceTitle "playchess.com"]
[Source "ChessBase"]
[SourceQuality "1"]
[TimeControl "5400+30"]

{[%evp 9,99,19,19,14,32,18,28,27,54,44,47,-11,18,12,40,40,30,27,50,29,47,43,56,58,65,71,52,53,69,63,61,79,73,65,68,65,61,47,43,49,55,44,42,34,67,54,82,93,79,84,87,85,91,88,75,50,51,43,49,22,195,191,189,192,390,373,452,410,437,428,527,476,483,450,435,439,601,581,818,811,1106,1072,2710,2679,2677,2562,2185,2175,1625,655,5710,3453]} 1. e4 {[%emt 0:00:04]} c5 {[%emt 0:00:04]} 2. Nf3 {[%emt 0:00:05]} d6 {[%emt 0:00:02]} 3. d4 {[%emt 0:00:07]} cxd4 {[%emt 0:00:04]} 4. Nxd4 {[%emt 0:00:04]} Nf6 {[%emt 0:00:04]} 5. Nc3 {[%emt 0:00:07]} a6 {[%emt 0:00:04]} 6. Qd3 {[%emt 0:00:13] B90: Sicilian Najdorf: Unusual White 6th moves, 6 Be3 Ng4 and 6 Be3 e5.} e5 {[%emt 0:00:15]} 7. Nb3 {[%emt 0:00:06]} Be7 {[%emt 0:00:29]} 8. Bg5 {[%emt 0:01:42] White has an edge.} Be6 {[%emt 0:06:23]} 9. Bxf6 {[%emt 0:00:41]} Bxf6 {[%emt 0:00:08]} 10. Nd5 {[%emt 0:00:03]} ({White should play} 10. O-O-O $14) 10... Bxd5 {[%emt 0:13:40]} 11. Qxd5 {[%emt 0:00:21]} Nc6 {[%emt 0:00:13]} 12. c3 {[%emt 0:02:01]} O-O {[%emt 0:00:23]} 13. Rd1 {[%emt 0:01:23]} Be7 {[%emt 0:00:34]} 14. Be2 {[%emt 0:01:35]} Qc7 {[%emt 0:00:27]} 15. O-O {[%emt 0:00:38] [#]} Rfd8 $146 ({Predecessor:} 15... b5 16. a3 Rac8 17. Na1 Rfd8 18. Nc2 Bg5 19. Qd3 Ne7 20. Qg3 Bf4 21. Qh3 d5 {1-0 (34) Hoang,T-Nguyen,T Ha Tinh 2000}) 16. Rd3 {[%emt 0:06:25]} Rac8 {[%emt 0:17:01]} 17. Rfd1 {[%emt 0:01:51]} b5 18. Nd2 {[%emt 0:11:08]} Na5 {[%emt 0:09:14]} 19. b4 {[%emt 0:04:41]} Nc6 {[%emt 0:03:34]} 20. a4 {[%emt 0:01:44]} Bf6 {[%emt 0:04:01]} 21. axb5 {[%emt 0:05:29]} Ne7 {[%emt 0:00:24]} 22. Qb3 {[%emt 0:00:06]} axb5 {[%emt 0:00:20]} 23. Nf1 {[%emt 0:02:11]} Qc6 {[%emt 0:08:31]} 24. Bg4 {[%emt 0:10:21]} Rb8 {[%emt 0:01:26]} 25. Bf3 {[%emt 0:00:56]} Bg5 {[%emt 0:02:16]} 26. g3 {[%emt 0:00:13]} Nc8 {[%emt 0:02:45]} 27. h4 {[%emt 0:03:48]} Bh6 {[%emt 0:01:00]} 28. Qd5 {[%emt 0:01:03]} Qe8 {[%emt 0:00:21]} 29. Qa2 {[%emt 0:03:24]} Qc6 {[%emt 0:00:33] [#]} 30. Nh2 $1 {[%emt 0:01:53]} g6 {[%emt 0:01:52]} 31. Ng4 {[%emt 0:00:37]} Bg7 {[%emt 0:00:22]} 32. h5 {[%emt 0:00:15] White is more active.} Nb6 $1 {[%emt 0:01:04]} ({Not} 32... Ra8 33. Qd5 Qa6 34. h6 $16) 33. h6 $36 {[%emt 0:01:44][%mdl 2048] White has the initiative.} Bh8 {[%emt 0:00:08][%cal Od6d5]} 34. Qd2 {[%emt 0:17:56][%cal Rd3d6]} Nc4 {[%emt 0:00:31] A mistake that costs the game.} (34... d5 $1 $11) 35. Qg5 $18 {[%emt 0:00:32] And now Nf6+ would win.} Qe8 {[%emt 0:00:16]} 36. Rd5 {[%emt 0:05:06] Be2 is the strong threat.} ({Much less strong is} 36. Nf6+ $6 Bxf6 37. Qxf6 Qf8 $16) 36... Qe6 $2 {[%emt 0:01:31] [#]} (36... Kf8 37. Be2 Qe7 38. Qxe7+ Kxe7) 37. Rxb5 $3 {[%emt 0:01:38][%mdl 512]} f6 {[%emt 0:01:38] [#]} (37... Ra8 38. Rb7) 38. Rxb8 $1 {[%emt 0:00:07]} Rxb8 {[%emt 0:00:22]} 39. Qc1 {[%emt 0:00:05] White is clearly winning.} Rc8 {[%emt 0:01:01]} 40. Qa1 {[%emt 0:00:32]} Qf7 {[%emt 0:02:05]} 41. Qa6 {[%emt 0:00:21]} Qc7 {[%emt 0:00:38]} 42. Be2 {[%emt 0:00:58] aiming for Bxc4+.} Nb6 {[%emt 0:00:31]} 43. Ne3 {[%emt 0:00:30]} Qc6 {[%emt 0:00:52]} 44. Qa7 {[%emt 0:01:34]} Re8 {[%emt 0:02:00]} 45. b5 {[%emt 0:03:46]} Qc5 {[%emt 0:00:15] [#]} 46. Nc4 $1 {[%emt 0:01:08][%mdl 512]} Nxc4 {[%emt 0:00:34]} 47. Qxc5 {[%emt 0:00:05][%mdl 64] Remove Defender} dxc5 {[%emt 0:00:06]} 48. Bxc4+ {[%emt 0:00:04]} Kf8 {[%emt 0:00:08]} 49. b6 {[%emt 0:00:26]} (49. Rd7 $142 Re7 50. Rd6) 49... Rb8 {[%emt 0:00:25]} 50. Rd7 {[%emt 0:00:15] Weighted Error Value: White=0.16 (very precise) /Black=0.28 (precise)} 1-0

[Event "Carolinas Classic 2022"]
[Site "Charlotte"]
[Date "2022.06.11"]
[Round "1.3"]
[White "Guha, Rohit"]
[Black "Brodsky, David"]
[Result "0-1"]
[ECO "E20"]
[WhiteElo "1945"]
[BlackElo "2484"]
[Annotator "TA"]
[PlyCount "80"]
[EventDate "2022.06.10"]
[EventType "swiss"]
[EventCountry "USA"]
[SourceTitle "playchess.com"]
[Source "ChessBase"]
[SourceQuality "1"]
[TimeControl "5400+30"]

{[%evp 9,80,-24,-5,-8,18,-17,-11,-18,-14,-21,-20,-14,-21,-4,-12,-22,0,0,0,0,76,89,74,26,28,8,33,0,0,2,211,58,105,97,91,91,91,107,104,89,68,64,76,33,35,0,0,-160,-85,-230,-230,-232,-230,-230,-238,-243,-233,-347,-346,-389,-381,-360,-373,-366,-352,-423,-360,-946,-947,-947,-945,-943,-823]} 1. d4 {[%emt 0:00:03]} Nf6 {[%emt 0:00:10]} 2. c4 {[%emt 0:00:08]} e6 {[%emt 0:00:03]} 3. Nc3 {[%emt 0:00:22]} Bb4 {[%emt 0:00:04]} 4. f3 {[%emt 0:00:05]} c5 {[%emt 0:00:17]} 5. d5 {[%emt 0:00:19]} b5 {[%emt 0:00:02]} 6. e4 {[%emt 0:00:06] E20: Nimzo-Indian: 4 g3 and 4 f3.} d6 $1 {[%emt 0:00:09][%mdl 4] is more profitable than 6...bxc4 at the moment.} 7. Nge2 {[%emt 0:00:20]} bxc4 {[%emt 0:00:13] With the idea ...exd5.} 8. Nf4 {[%emt 0:09:35] The position is equal.} e5 {[%emt 0:00:11]} 9. Nfe2 {[%emt 0:00:35]} Nbd7 {[%emt 0:00:05]} 10. Ng3 {[%emt 0:05:15]} Nb6 {[%emt 0:00:08]} 11. Be2 {[%emt 0:01:36]} Ng8 {[%emt 0:00:05][%cal Bf6g8,Bg8e7,Be7g6,Bg6h4][%mdl 32]} 12. h4 {[%emt 0:08:53]} Ne7 {[%emt 0:01:07]} 13. h5 {[%emt 0:06:44] Inhibits Ng6.} h6 {[%emt 0:00:12] [#]} 14. O-O $146 {[%emt 0:01:52][%cal Be1g1,Bg1f2,Bf2g2,Bg2f3][%mdl 32]} ({Predecessor:} 14. f4 exf4 15. Bxf4 g5 16. hxg6 Nxg6 17. Qd2 Qe7 18. O-O Bd7 19. Bxh6 O-O-O 20. Nh5 Bxc3 21. bxc3 Qxe4 {0-1 (39) Suleymanli,A (2541)-Brkic,A (2621) Riga 2021}) 14... g5 {[%emt 0:16:45] [#]} (14... f6 $11 {keeps the balance.}) 15. hxg6 $1 $16 {[%emt 0:11:37]} Nxg6 {[%emt 0:00:14]} 16. f4 {[%emt 0:01:01]} (16. Nh5 $16) 16... Rg8 {[%emt 0:11:54]} 17. f5 {[%emt 0:08:39]} (17. Nh5 $5 {[%cal Rf4e5]} exf4 18. Bxf4 Nxf4 19. Rxf4 $11) 17... Nh4 {[%emt 0:02:46]} 18. Kf2 {[%emt 0:07:01] Hoping for Rh1.} Bxc3 {[%emt 0:07:26]} 19. bxc3 {[%emt 0:00:12] Rh1 is the strong threat.} Bd7 $2 {[%emt 0:00:03]} (19... Nxg2 $11 {and Black stays safe.} 20. Kxg2 Qh4) 20. a4 $2 {[%emt 0:06:11]} ({White should try} 20. Rh1 $18) 20... Qf6 {[%emt 0:17:32]} (20... Nxg2 $14 21. Kxg2 Qh4) 21. Bg4 {[%emt 0:06:48]} Nxg2 {[%emt 0:05:10]} 22. Kxg2 {[%emt 0:02:26] Strongly threatening Kh3.} Qh4 {[%emt 0:00:06]} 23. Rh1 {[%emt 0:00:45]} Qxg4 {[%emt 0:00:13]} 24. Qxg4 {[%emt 0:00:11]} Rxg4 {[%emt 0:00:06]} 25. Kf3 {[%emt 0:01:28]} Rg8 {[%emt 0:01:10]} 26. a5 {[%emt 0:04:07]} Na4 {[%emt 0:00:41]} 27. Nh5 {[%emt 0:00:38] aiming for Nf6+.} (27. Bd2 $5 {[%cal Rh1h6]}) 27... Ke7 {[%emt 0:10:55] Prevents Nf6.} ({Don't take} 27... Nxc3 28. Nf6+ Ke7 29. Nxg8+ Rxg8 30. Bxh6 $16) 28. Bxh6 $2 {[%emt 0:01:59]} ({White should play} 28. Bd2 $11) 28... Nxc3 $17 {[%emt 0:01:07] Threatens to win with ...Rab8.} 29. Rag1 {[%emt 0:01:04]} (29. Bg7 $17) 29... Rxg1 $19 {[%emt 0:01:14]} 30. Rxg1 {[%emt 0:01:08]} Rh8 {[%emt 0:00:15]} 31. Bg5+ {[%emt 0:11:57]} Kf8 {[%emt 0:00:15]} 32. Nf6 {[%emt 0:00:55]} Bb5 {[%emt 0:03:20]} 33. Rc1 {[%emt 0:01:33]} (33. Ra1 $142) 33... Na2 {[%emt 0:00:34]} 34. Ra1 {[%emt 0:00:52] [#]} Nb4 {[%emt 0:00:49]} 35. Ng4 {[%emt 0:00:14]} c3 {[%emt 0:00:50][%cal Bc4c3,Bc3c2][%mdl 32]} 36. Bh6+ {[%emt 0:00:32]} Ke7 {[%emt 0:00:25]} 37. Rg1 {[%emt 0:00:46]} c2 {[%emt 0:00:37][%cal Oh8h6] And now ...Rxh6! would win.} 38. Nf6 $2 {[%emt 0:00:30]} (38. Bg5+ Kd7 39. Kg3) 38... Rxh6 {[%emt 0:01:36] Black is clearly winning.} 39. Ng8+ {[%emt 0:00:06]} Ke8 {[%emt 0:00:23]} 40. Nxh6 {[%emt 0:00:11]} Nd3 {[%emt 0:00:03] Weighted Error Value: White=0.53/Black=0.20 (precise)} 0-1

[Event "Carolinas Classic 2022"]
[Site "Charlotte"]
[Date "2022.06.11"]
[Round "1.4"]
[White "Panchanathan, Magesh Chandran"]
[Black "Sammons, Evan"]
[Result "1-0"]
[ECO "A05"]
[WhiteElo "2474"]
[BlackElo "1772"]
[Annotator "TA"]
[PlyCount "33"]
[EventDate "2022.06.10"]
[EventType "swiss"]
[EventCountry "USA"]
[SourceTitle "playchess.com"]
[Source "ChessBase"]
[SourceQuality "1"]
[TimeControl "5400+30"]

{[%evp 13,33,2,18,0,1,0,22,22,77,73,99,89,107,97,97,109,306,282,300,285,617,636]} 1. Nf3 {[%emt 0:03:32]} Nf6 {[%emt 0:00:12]} 2. g3 {[%emt 0:00:06]} b5 {[%emt 0:00:07]} 3. Bg2 {[%emt 0:00:37]} Bb7 {[%emt 0:00:07]} 4. O-O {[%emt 0:00:32]} e6 {[%emt 0:00:07]} 5. a4 {[%emt 0:01:52]} b4 {[%emt 0:00:20]} 6. d3 {[%emt 0:00:43]} c5 {[%emt 0:00:39]} 7. e4 {[%emt 0:00:27]} d6 {[%emt 0:00:09]} 8. c3 {[%emt 0:00:38] A05: Réti Opening: 1 Nf3 Nf6.} Nc6 {[%emt 0:02:28]} 9. a5 {[%emt 0:00:38] [#]} a6 $146 {[%emt 0:07:48]} ({Predecessor:} 9... Rc8 10. Qa4 Qd7 11. a6 Ba8 12. Nbd2 Be7 13. Nc4 O-O 14. Bd2 d5 15. exd5 Nxd5 {0-1 (31) Disconzi da Silva,R (2362)-Delgado Ramirez,N (2604) Florianopolis 2015}) 10. Qa4 {[%emt 0:00:08] The position is equal.} Qd7 {[%emt 0:09:37]} (10... bxc3 $11 11. bxc3 (11. Nxc3 Qd7 $11) 11... Be7) 11. Nbd2 $16 {[%emt 0:01:32][%cal Bb1d2,Bd2c4,Bc4b6][%mdl 32]} Be7 {[%emt 0:00:27]} 12. Nc4 {[%emt 0:01:27]} Rd8 {[%emt 0:01:55]} 13. Nb6 {[%emt 0:01:08]} Qc7 {[%emt 0:00:09]} 14. cxb4 {[%emt 0:00:43] White is more active.} cxb4 {[%emt 0:00:12]} (14... O-O $16) 15. Be3 $18 {[%emt 0:01:07]} O-O {[%emt 0:00:39]} 16. Rfc1 {[%emt 0:01:11] [#] Threatens to win with Nd4.} d5 $2 {[%emt 0:01:26]} (16... Nd7 17. d4 Kh8) 17. Bf4 {[%emt 0:01:15] Black did not feel at home in the position after the opening.  Weighted Error Value: White=0.02 (flawless) /Black=0.71} 1-0

[Event "Carolinas Classic 2022"]
[Site "Charlotte"]
[Date "2022.06.11"]
[Round "1.5"]
[White "Pothuri, Abhiram"]
[Black "Ippolito, Dean"]
[Result "0-1"]
[ECO "B31"]
[WhiteElo "2090"]
[BlackElo "2375"]
[Annotator "TA"]
[PlyCount "102"]
[EventDate "2022.06.10"]
[EventType "swiss"]
[EventCountry "USA"]
[SourceTitle "playchess.com"]
[Source "ChessBase"]
[SourceQuality "1"]
[TimeControl "5400+30"]

{[%evp 20,102,24,25,37,0,49,40,59,51,62,56,44,61,69,72,54,35,61,18,39,2,5,4,24,27,30,0,5,-18,-27,-91,-74,-562,-519,-419,-400,-692,-681,-667,-626,-908,-860,-1328,-1282,-1180,0,0,0,0,0,0,0,0,0,0,0,0,0,0,0,-329,-329,-329,-328,-343,-342,-342,-335,-527,-329,-329,-327,-1385,-1383,-1229,-1204,-1761,-1680,-5073,-5065,-29988,-29989,-29989,-29989]} 1. e4 {[%emt 0:00:02]} c5 {[%emt 0:00:03]} 2. Nf3 {[%emt 0:00:09]} Nc6 {[%emt 0:00:03]} 3. Bb5 {[%emt 0:00:11]} g6 {[%emt 0:00:08]} 4. O-O {[%emt 0:00:25]} Bg7 {[%emt 0:00:05]} 5. c3 {[%emt 0:00:29]} Nf6 {[%emt 0:00:33]} 6. Re1 {[%emt 0:01:06]} O-O {[%emt 0:00:26]} 7. d4 {[%emt 0:01:21]} d5 {[%emt 0:00:09]} 8. e5 {[%emt 0:05:27]} Ne4 {[%emt 0:00:16]} 9. Ng5 {[%emt 0:04:54]} Nxg5 {[%emt 0:12:49]} 10. Bxg5 {[%emt 0:00:13]} cxd4 {[%emt 0:02:02]} 11. cxd4 {[%emt 0:02:42]} f6 {[%emt 0:00:36] B31: Sicilian: 2...Nc6 3 Bb5 g6.} 12. Bxc6 {[%emt 0:08:50]} bxc6 {[%emt 0:01:25]} (12... fxg5 $11 13. Ba4 a6) 13. Bf4 $14 {[%emt 0:01:16] [#]} e6 $146 {[%emt 0:43:13] White is slightly better.} ({Predecessor:} 13... Qb6 14. Qd2 a5 15. Nc3 a4 16. Rac1 Bd7 17. h4 Ra7 18. Re3 fxe5 19. Bxe5 Bh6 {1-0 (40) Menzel,R (2230)-Rabeler,G (2335) Germany 1991}) 14. Qd2 {[%emt 0:14:09]} fxe5 {[%emt 0:06:19]} 15. Bxe5 {[%emt 0:00:17]} Bxe5 {[%emt 0:00:04]} 16. Rxe5 {[%emt 0:00:23]} Qd6 {[%emt 0:04:06]} 17. Nc3 {[%emt 0:10:13]} c5 {[%emt 0:00:17]} 18. Rae1 {[%emt 0:01:56]} (18. Na4 $5 {[%cal Ra4c5]}) 18... Bd7 {[%emt 0:01:43]} 19. h4 {[%emt 0:14:13][%cal Bh2h4,Bh4h5][%mdl 32]} Rab8 {[%emt 0:01:36]} 20. h5 {[%emt 0:13:54]} cxd4 {[%emt 0:02:44]} 21. Qxd4 {[%emt 0:00:42][%cal Rc3d5]} Rb4 {[%emt 0:08:48]} (21... Qb6 $5 {[%cal Rb6d4]} 22. Qh4 (22. Qxb6 Rxb6 23. b3 Rc6 $15) 22... Qb4 $11) 22. Qd2 {[%emt 0:06:26][%cal Rc3d5] Strongly threatening Nxd5!} Rg4 {[%emt 0:05:03]} 23. h6 {[%emt 0:05:13]} Rf5 {[%emt 0:03:21]} 24. Rxf5 {[%emt 0:06:20]} gxf5 {[%emt 0:00:04]} 25. Qe2 {[%emt 0:00:43]} (25. Ne2 $11 {keeps the balance.}) 25... d4 {[%emt 0:01:04]} 26. Nb5 {[%emt 0:00:17][%mdl 8192]} (26. Nb1 $17) 26... Qd5 $1 $19 {[%emt 0:00:36][%csl Gg4,LRa2,LRb5,LRg2][%cal Rd5g2]} 27. f3 {[%emt 0:00:17]} Bxb5 {[%emt 0:02:10]} 28. Qc2 {[%emt 0:00:38]} (28. Qxe6+ $142 Qxe6 29. Rxe6) 28... Rg6 {[%emt 0:00:37]} 29. Qc8+ {[%emt 0:00:11]} Kf7 {[%emt 0:00:01]} 30. Rc1 {[%emt 0:00:38]} d3 {[%emt 0:02:25]} (30... Qxf3 31. Rc7+ Kf6 32. Qh8+ Kg5 33. gxf3 $18) 31. Qh8 {[%emt 0:00:42] Prevents Qd4+.} Rxh6 {[%emt 0:02:20]} 32. Rc8 {[%emt 0:00:35]} Qd6 $2 {[%emt 0:00:52]} ({Black should try} 32... d2 $19 33. Qg8+ Kf6 34. Rf8+ Ke5 35. Qg7+ Rf6 $3 {[%mdl 512]} 36. Qxf6+ Kd6) 33. Qg8+ $11 {[%emt 0:01:29]} Kf6 {[%emt 0:00:02]} 34. Rf8+ {[%emt 0:00:34]} Ke5 $1 {[%emt 0:00:06]} 35. Qg7+ {[%emt 0:00:09]} Kd5 $1 {[%emt 0:00:04]} 36. Qxh6 {[%emt 0:00:05][%mdl 4096] Endgame KQR-KQB} f4 $36 {[%emt 0:01:43][%mdl 2048] ...d2 is the strong threat. Black is pushing.} 37. Qg5+ {[%emt 0:01:18]} (37. Rxf4 $2 d2 38. Rd4+ Kxd4 $19) 37... e5 $1 {[%emt 0:00:31]} 38. Rd8 {[%emt 0:00:21]} Bd7 {[%emt 0:00:05] White must now prevent ...d2.} 39. Qg8+ {[%emt 0:00:26]} Kc5 {[%emt 0:00:35] And now ...d2 would win.} 40. Qxh7 $2 {[%emt 0:00:43][%mdl 8192] [#]} (40. Qb3 $1 $11 {and White is okay.} Qd4+ 41. Kf1) 40... d2 $1 $19 {[%emt 0:00:55]} ({Weaker is} 40... Qd4+ 41. Kh2 Kc6 42. Rg8 $11) 41. Qc2+ {[%emt 0:00:15] [#]} Kb6 $1 {[%emt 0:00:06] Active counter play!} 42. Qd1 {[%emt 0:00:40]} ({Much weaker is} 42. Qb3+ Kc7 43. Rxd7+ (43. Qb8+ $2 Kc6 $19) 43... Kxd7 $19) 42... Kc7 {[%emt 0:00:33]} 43. Ra8 {[%emt 0:00:35]} Kb7 {[%emt 0:00:44] Really sharp!} 44. Rh8 {[%emt 0:00:30] [#]} (44. Rd8 $142 Qb6+ 45. Kh2 Qxd8 46. Qxd2) 44... Ba4 $1 {[%emt 0:00:20][%mdl 512]} 45. Rh7+ {[%emt 0:00:17]} Kb6 {[%emt 0:00:13]} 46. b3 $2 {[%emt 0:00:09]} (46. Rh6 Qxh6 47. Qxd2) 46... Qc5+ {[%emt 0:00:31]} 47. Kh2 {[%emt 0:00:45]} Qc1 {[%emt 0:00:02]} 48. Qe2 {[%emt 0:00:42]} d1=Q {[%emt 0:00:04][%csl Gc1][%cal Rd1h1]} 49. Rh6+ {[%emt 0:00:37]} Bc6 {[%emt 0:00:13] ( -> ...Qh1#)} 50. Rxc6+ {[%emt 0:00:05]} Kxc6 {[%emt 0:00:03][%csl Gc1][%cal Rd1h1]} 51. Qa6+ {[%emt 0:00:10]} Kd5 {[%emt 0:01:17] Weighted Error Value: White=1.25/Black=0.20 (precise)} 0-1

[Event "Carolinas Classic 2022"]
[Site "Charlotte"]
[Date "2022.06.11"]
[Round "2.1"]
[White "Moradiabadi, Elshan"]
[Black "Karthik, Advaith"]
[Result "1-0"]
[ECO "A18"]
[WhiteElo "2537"]
[BlackElo "2081"]
[Annotator "TA"]
[PlyCount "39"]
[EventDate "2022.06.10"]
[EventType "swiss"]
[EventCountry "USA"]
[SourceTitle "playchess.com"]
[Source "ChessBase"]
[SourceQuality "1"]
[TimeControl "5400+30"]

{[%evp 12,39,22,21,17,2,20,10,22,13,18,6,229,243,232,252,245,221,219,186,183,183,231,211,288,275,391,397,396,388]} 1. c4 {[%emt 0:00:26]} Nf6 {[%emt 0:02:26]} 2. Nc3 {[%emt 0:07:02]} e6 {[%emt 0:00:10]} 3. e4 {[%emt 0:00:01]} d5 {[%emt 0:00:08]} 4. e5 {[%emt 0:00:09]} d4 {[%emt 0:00:06]} 5. exf6 {[%emt 0:00:08]} dxc3 {[%emt 0:00:07]} 6. bxc3 {[%emt 0:00:00]} Qxf6 {[%emt 0:00:13]} 7. Nf3 {[%emt 0:01:44]} b6 {[%emt 0:04:33] A18: English Opening: Flohr-Mikenas System (1 c4 Nf6 2 Nc3 e6 3 e4).} 8. g3 {[%emt 0:03:18]} Bb7 {[%emt 0:01:04]} 9. Bg2 {[%emt 0:00:01]} Bd6 {[%emt 0:05:21] The position is equal.} 10. d4 {[%emt 0:00:19] Strongly threatening Bg5.} h6 {[%emt 0:00:18] Inhibits Bg5.} 11. Qd3 {[%emt 0:00:50] [#]} O-O $146 {[%emt 0:03:35] [#]} (11... Nd7 $11) ({Predecessor:} 11... Nd7 12. O-O Rb8 13. Nd2 Bxg2 14. Kxg2 O-O 15. f4 Rbd8 16. Nf3 Qf5 17. Qxf5 exf5 {0-1 (42) Maslak,K (2548)-Khusenkhojaev,M (2310) Peterhof 2007}) 12. Ng5 $1 $18 {[%emt 0:01:24][%mdl 512]} hxg5 {[%emt 0:00:05]} 13. Bxb7 {[%emt 0:00:03]} Nd7 {[%emt 0:00:08]} 14. Bxa8 {[%emt 0:00:07]} Rxa8 {[%emt 0:00:05]} 15. O-O {[%emt 0:01:16]} Rd8 {[%emt 0:03:21]} 16. Qe4 {[%emt 0:00:39]} c5 {[%emt 0:03:00]} (16... Qe7 $142 17. Rb1 f6) 17. Be3 {[%emt 0:01:38]} e5 {[%emt 0:04:59]} 18. Rad1 {[%emt 0:02:04]} Rc8 {[%emt 0:00:36]} (18... Qe7 $142 19. dxc5 Nxc5 20. Bxc5 Bxc5 21. Rxd8+ Qxd8 22. Qxe5 a6) 19. Qg4 {[%emt 0:00:12][%csl LRd7,LRg5]} exd4 {[%emt 0:02:07]} 20. Bxg5 {[%emt 0:01:41] White took control after the opening.  Weighted Error Value: White=0.08 (flawless) /Black=0.47} ({Don't play} 20. Qxd7 Rd8 21. Qxa7 dxe3 $18) 1-0